fUSD/lending_fUSD_20250216
["ID","MTS","AMOUNT","RATE_DAILY","PERIOD"]
[353255732,1739719848287,-500.0,0.00011041,2]
[353255733,1739719848297,-500.0,0.00011041,2]
[353255734,1739719848306,-546.98,0.00011041,2]
[353255735,1739719848317,-778.31,0.00011041,2]
[353255736,1739719848326,-500.0,0.00011041,2]
[353255737,1739719848336,-720.05,0.00011041,2]
[353255738,1739719848347,-500.0,0.00011041,2]
[353255739,1739719848356,-500.0,0.00011041,2]
[353255740,1739719848366,-982.93,0.00011041,2]
[353255741,1739719848375,-500.0,0.00011041,2]
[353255742,1739719848385,-610.07,0.00011041,2]
[353255743,1739719848394,-500.0,0.00011041,2]
[353255744,1739719848404,-812.65,0.00011041,2]
[353255745,1739719848413,-500.0,0.00011041,2]
[353255746,1739719848423,-500.0,0.00011041,2]
[353255747,1739719848433,-500.0,0.00011041,2]
[353255748,1739719848442,-500.0,0.00011041,2]
[353255749,1739719848453,-500.0,0.00011041,2]
[353255750,1739719848462,-500.0,0.00011041,2]
[353255751,1739719848472,-580.16919119,0.00011041,2]
[353255752,1739719848482,-500.0,0.00011041,2]
[353255753,1739719848492,-500.0,0.00011041,2]
[353255754,1739719848503,-500.0,0.00011041,2]
[353255755,1739719848513,-500.0,0.00011041,2]
[353255756,1739719848523,-761.58,0.00011041,2]
[353255757,1739719848533,-500.0,0.00011041,2]
[353255758,1739719848543,-527.09,0.00011041,2]
[353255759,1739719848553,-500.0,0.00011041,2]
[353255760,1739719848563,-1082.54,0.00011041,2]
[353255761,1739719848573,-797.05,0.00011041,2]
[353255762,1739719848584,-500.0,0.00011041,2]
[353255763,1739719848593,-500.0,0.00011041,2]
[353255764,1739719848603,-717.56,0.00011041,2]
[353255765,1739719848613,-607.4,0.00011041,2]
[353255766,1739719848623,-500.0,0.00011041,2]
[353255767,1739719848633,-500.0,0.00011041,2]
[353255768,1739719848643,-682.32,0.00011041,2]
[353255769,1739719848653,-500.0,0.00011041,2]
[353255770,1739719848663,-500.0,0.00011041,2]
[353255771,1739719848673,-1095.09,0.00011041,2]
[353255772,1739719848683,-500.0,0.00011041,2]
[353255773,1739719848695,-500.0,0.00011041,2]
[353255774,1739719848705,-500.0,0.00011041,2]
[353255775,1739719848715,-500.0,0.00011041,2]
[353255776,1739719848726,-500.0,0.00011041,2]
[353255777,1739719848736,-500.0,0.00011041,2]
[353255778,1739719848745,-500.0,0.00011041,2]
[353255779,1739719848755,-500.0,0.00011041,2]
[353255780,1739719848765,-500.0,0.00011041,2]
[353255781,1739719848776,-500.0,0.00011041,2]
[353255782,1739719848786,-752.79,0.00011041,2]
[353255783,1739719848796,-693.95,0.00011041,2]
[353255784,1739719848806,-500.0,0.00011041,2]
[353255785,1739719848816,-606.73,0.00011041,2]
[353255786,1739719848826,-624.98,0.00011041,2]
[353255787,1739719848836,-500.0,0.00011041,2]
[353255788,1739719848846,-500.0,0.00011041,2]
[353255789,1739719848856,-500.0,0.00011041,2]
[353255790,1739719848866,-500.0,0.00011041,2]
[353255791,1739719848876,-562.44,0.00011041,2]
[353255792,1739719848886,-791.35,0.00011041,2]
[353255793,1739719848896,-500.0,0.00011041,2]
[353255794,1739719848907,-500.0,0.00011041,2]
[353255795,1739719848917,-1070.44,0.00011041,2]
[353255796,1739719848926,-500.0,0.00011041,2]
[353255797,1739719848938,-887.17,0.00011041,2]
[353255798,1739719848949,-500.0,0.00011041,2]
[353255799,1739719848960,-801.39237,0.00011041,2]
[353255800,1739719848970,-500.0,0.00011041,2]
[353255801,1739719848980,-658.15,0.00011041,2]
[353255802,1739719848991,-500.0,0.00011041,2]
[353255803,1739719849001,-500.0,0.00011041,2]
[353255804,1739719849011,-500.0,0.00011041,2]
[353255805,1739719849020,-500.0,0.00011041,2]
[353255806,1739719849030,-500.0,0.00011041,2]
[353255807,1739719849040,-723.28,0.00011041,2]
[353255808,1739719849050,-1036.138115,0.00011041,2]
[353255809,1739719849060,-500.0,0.00011041,2]
[353255810,1739719849071,-615.74,0.00011041,2]
[353255811,1739719849082,-500.0,0.00011041,2]
[353255812,1739719849093,-500.0,0.00011041,2]
[353255813,1739719849103,-500.0,0.00011041,2]
[353255814,1739719849113,-500.0,0.00011041,2]
[353255815,1739719849123,-500.0,0.00011041,2]
[353255816,1739719849133,-500.0,0.00011041,2]
[353255817,1739719849142,-500.0,0.00011041,2]
[353255818,1739719849152,-500.0,0.00011041,2]
[353255819,1739719849163,-500.0,0.00011041,2]
[353255820,1739719849172,-500.0,0.00011041,2]
[353255821,1739719849182,-500.0,0.00011041,2]
[353255822,1739719849193,-500.0,0.00011041,2]
[353255823,1739719849203,-500.0,0.00011041,2]
[353255824,1739719849216,-500.0,0.00011041,2]
[353255825,1739719849226,-500.0,0.00011041,2]
[353255826,1739719849236,-500.0,0.00011041,2]
[353255827,1739719849246,-1142.85,0.00011041,2]
[353255828,1739719849255,-500.0,0.00011041,2]
[353255829,1739719849264,-500.0,0.00011041,2]
[353255830,1739719849275,-500.0,0.00011041,2]
[353255831,1739719849285,-500.0,0.00011041,2]
[353255832,1739719849296,-572.02,0.00011041,2]
[353255833,1739719849307,-500.0,0.00011041,2]
[353255834,1739719849316,-500.0,0.00011041,2]
[353255835,1739719849326,-500.0,0.00011041,2]
[353255836,1739719849336,-500.0,0.00011041,2]
[353255837,1739719849346,-500.0,0.00011041,2]
[353255838,1739719849356,-564.69,0.00011041,2]
[353255839,1739719849367,-551.48,0.00011041,2]
[353255840,1739719849377,-500.0,0.00011041,2]
[353255841,1739719849387,-676.69,0.00011041,2]
[353255842,1739719849398,-500.0,0.00011041,2]
[353255843,1739719849408,-615.32,0.00011041,2]
[353255844,1739719849418,-500.0,0.00011041,2]
[353255845,1739719849427,-500.0,0.00011041,2]
[353255846,1739719849437,-594.63,0.00011041,2]
[353255847,1739719849447,-647.43,0.00011041,2]
[353255848,1739719849457,-605.03,0.00011041,2]
[353255849,1739719849467,-500.0,0.00011041,2]
[353255850,1739719849477,-737.6,0.00011041,2]
[353255851,1739719849487,-500.0,0.00011041,2]
[353255852,1739719849498,-500.0,0.00011041,2]
[353255853,1739719849508,-500.0,0.00011041,2]
[353255854,1739719849517,-677.67,0.00011041,2]
[353255855,1739719849527,-856.01,0.00011041,2]
[353255856,1739719849537,-580.88,0.00011041,2]
[353255857,1739719849547,-547.28,0.00011041,2]
[353255858,1739719849556,-659.59,0.00011041,2]
[353255859,1739719849565,-500.0,0.00011041,2]
[353255860,1739719849575,-500.0,0.00011041,2]
[353255861,1739719849585,-500.0,0.00011041,2]
[353255862,1739719849594,-500.0,0.00011041,2]
[353255863,1739719849603,-500.0,0.00011041,2]
[353255864,1739719849612,-500.0,0.00011041,2]
[353255865,1739719849622,-679.65,0.00011041,2]
[353255866,1739719849631,-635.55,0.00011041,2]
[353255867,1739719849640,-500.0,0.00011041,2]
[353255868,1739719849650,-1531.02,0.00011041,2]
[353255869,1739719849659,-500.0,0.00011041,2]
[353255870,1739719849668,-500.0,0.00011041,2]
[353255871,1739719849677,-500.0,0.00011041,2]
[353255872,1739719849686,-710.02,0.00011041,2]
[353255873,1739719849696,-552.24,0.00011041,2]
[353255874,1739719849706,-609.92,0.00011041,2]
[353255875,1739719849715,-775.33,0.00011041,2]
[353255876,1739719849725,-927.32,0.00011041,2]
[353255877,1739719849735,-833.8,0.00011041,2]
[353255878,1739719849744,-713.28,0.00011041,2]
[353255879,1739719849753,-2162.44,0.00011041,2]
[353255880,1739719849763,-500.0,0.00011041,2]
[353255881,1739719849772,-500.0,0.00011041,2]
[353255882,1739719849781,-661.28,0.00011041,2]
[353255883,1739719849790,-763.65,0.00011041,2]
[353255884,1739719849800,-500.0,0.00011041,2]
[353255885,1739719849809,-500.0,0.00011041,2]
[353255886,1739719849819,-696.46,0.00011041,2]
[353255887,1739719849828,-500.0,0.00011041,2]
[353255888,1739719849838,-500.0,0.00011041,2]
[353255889,1739719849847,-1016.22,0.00011041,2]
[353255890,1739719849916,-840.07,0.00011041,2]
[353255891,1739719849926,-500.0,0.00011041,2]
[353255892,1739719849935,-997.87,0.00011041,2]
[353255893,1739719849946,-1941.86,0.00011041,2]
[353255894,1739719849955,-500.0,0.00011041,2]
[353255895,1739719849965,-500.0,0.00011041,2]
[353255896,1739719849974,-960.55,0.00011041,2]
[353255897,1739719849984,-500.0,0.00011041,2]
[353255898,1739719849993,-1316.29,0.00011041,2]
[353255899,1739719850003,-628.04,0.00011041,2]
[353255900,1739719850012,-967.16,0.00011041,2]
[353255901,1739719850022,-1082.77,0.00011041,2]
[353255902,1739719850031,-537.42,0.00011041,2]
[353255903,1739719850041,-1148.65,0.00011041,2]
[353255904,1739719850050,-522.8,0.00011041,2]
[353255905,1739719850059,-500.0,0.00011041,2]
[353255906,1739719850068,-1133.71,0.00011041,2]
[353255907,1739719850077,-500.0,0.00011041,2]
[353255908,1739719850086,-1545.2,0.00011041,2]
[353255909,1739719850095,-500.0,0.00011041,2]
[353255910,1739719850104,-1208.7,0.00011041,2]
[353255911,1739719850114,-3059.32,0.00011041,2]
[353255912,1739719850123,-500.0,0.00011041,2]
[353255913,1739719850133,-575.61,0.00011041,2]
[353255914,1739719850142,-1330.36,0.00011041,2]
[353255915,1739719850151,-1260.47,0.00011041,2]
[353255916,1739719850162,-500.0,0.00011041,2]
[353255917,1739719850171,-657.52,0.00011041,2]
[353255918,1739719850181,-656.43,0.00011041,2]
[353255919,1739719850191,-533.75,0.00011041,2]
[353255920,1739719850200,-500.0,0.00011041,2]
[353255921,1739719850211,-500.0,0.00011041,2]
[353255922,1739719850222,-1280.71,0.00011041,2]
[353255923,1739719850232,-1667.11,0.00011041,2]
[353255924,1739719850241,-1761.78,0.00011041,2]
[353255925,1739719850251,-655.49,0.00011041,2]
[353255926,1739719850260,-765.75,0.00011041,2]
[353255927,1739719850271,-954.99,0.00011041,2]
[353255928,1739719850280,-510.92,0.00011041,2]
[353255929,1739719850289,-1071.72,0.00011041,2]
[353255930,1739719850299,-898.62,0.00011041,2]
[353255931,1739719850308,-963.74,0.00011041,2]
[353255932,1739719850317,-500.0,0.00011041,2]
[353255933,1739719850327,-500.0,0.00011041,2]
[353255934,1739719850337,-1432.53,0.00011041,2]
[353255935,1739719850349,-1288.05,0.00011041,2]
[353255936,1739719850360,-1131.27,0.00011041,2]
[353255937,1739719850370,-1497.56,0.00011041,2]
[353255938,1739719850379,-938.67,0.00011041,2]
[353255939,1739719850387,-922.59,0.00011041,2]
[353255940,1739719850397,-500.0,0.00011041,2]
[353255941,1739719850406,-500.0,0.00011041,2]
[353255942,1739719850415,-1297.94,0.00011041,2]
[353255943,1739719850424,-500.0,0.00011041,2]
[353255944,1739719850432,-1275.03,0.00011041,2]
[353255945,1739719850441,-1207.44,0.00011041,2]
[353255946,1739719850451,-857.03,0.00011041,2]
[353255947,1739719850460,-1139.27,0.00011041,2]
[353255948,1739719850469,-2609.71,0.00011041,2]
[353255949,1739719850479,-2357.36,0.00011041,2]
[353255950,1739719850487,-948.68,0.00011041,2]
[353255951,1739719850497,-1322.5,0.00011041,2]
[353255952,1739719850506,-745.27,0.00011041,2]
[353255953,1739719850516,-1014.65,0.00011041,2]
[353255954,1739719850526,-3965.85,0.00011041,2]
[353255955,1739719850534,-732.97,0.00011041,2]
[353255956,1739719850544,-1054.68,0.00011041,2]
[353255957,1739719850554,-1029.25,0.00011041,2]
[353255958,1739719850564,-647.83,0.00011041,2]
[353255959,1739719850574,-500.0,0.00011041,2]
[353255960,1739719850584,-1589.44,0.00011041,2]
[353255961,1739719850593,-1129.52,0.00011041,2]
[353255962,1739719850602,-500.0,0.00011041,2]
[353255963,1739719850612,-500.0,0.00011041,2]
[353255964,1739719850621,-856.52,0.00011041,2]
[353255965,1739719850630,-1397.84,0.00011041,2]
[353255966,1739719850640,-2006.41,0.00011041,2]
[353255967,1739719850650,-1495.83,0.00011041,2]
[353255968,1739719850659,-2283.55,0.00011041,2]
[353255969,1739719850667,-1573.52,0.00011041,2]
[353255970,1739719850676,-950.54,0.00011041,2]
[353255971,1739719850687,-500.0,0.00011041,2]
[353255972,1739719850698,-1359.93,0.00011041,2]
[353255973,1739719850707,-629.85,0.00011041,2]
[353255974,1739719850716,-500.0,0.00011041,2]
[353255975,1739719850725,-1723.99,0.00011041,2]
[353255976,1739719850735,-937.03,0.00011041,2]
[353255977,1739719850744,-1047.35,0.00011041,2]
[353255978,1739719850753,-835.09,0.00011041,2]
[353255979,1739719850764,-989.7,0.00011041,2]
[353255980,1739719850773,-1680.52,0.00011041,2]
[353255981,1739719850783,-500.0,0.00011041,2]
[353255982,1739719850793,-502.61,0.00011041,2]
[353255983,1739719850803,-1596.94,0.00011041,2]
[353255984,1739719850812,-685.52,0.00011041,2]
[353255985,1739719850821,-2108.61,0.00011041,2]
[353255986,1739719850831,-500.0,0.00011041,2]
[353255987,1739719850840,-500.0,0.00011041,2]
[353255988,1739719850850,-1064.74,0.00011041,2]
[353255989,1739719850859,-704.43,0.00011041,2]
[353255990,1739719850868,-500.0,0.00011041,2]
[353255991,1739719850877,-500.0,0.00011041,2]
[353255992,1739719850886,-564.7,0.00011041,2]
[353255993,1739719850895,-726.22,0.00011041,2]
[353255994,1739719850905,-1272.36,0.00011041,2]
[353255995,1739719850915,-500.0,0.00011041,2]
[353255996,1739719850924,-709.56,0.00011041,2]
[353255997,1739719850934,-500.0,0.00011041,2]
[353255998,1739719850944,-580.11,0.00011041,2]
[353255999,1739719850954,-1243.11,0.00011041,2]
[353256000,1739719850963,-1320.64,0.00011041,2]
[353256001,1739719850973,-893.54,0.00011041,2]
[353256002,1739719850983,-500.0,0.00011041,2]
[353256003,1739719850992,-636.44,0.00011041,2]
[353256004,1739719851002,-500.0,0.00011041,2]
[353256005,1739719851011,-500.0,0.00011041,2]
[353256006,1739719851021,-748.46,0.00011041,2]
[353256007,1739719851031,-740.82,0.00011041,2]
[353256008,1739719851040,-500.0,0.00011041,2]
[353256009,1739719851050,-1055.86,0.00011041,2]
[353256010,1739719851059,-1117.63,0.00011041,2]
[353256011,1739719851068,-500.0,0.00011041,2]
[353256012,1739719851078,-857.05,0.00011041,2]
[353256013,1739719851088,-500.0,0.00011041,2]
[353256014,1739719851097,-500.0,0.00011041,2]
[353256015,1739719851107,-500.0,0.00011041,2]
[353256016,1739719851116,-175.94871696,0.00011087,2]
[353256017,1739719851125,-33744.83212135,0.00011099,2]
[353256018,1739719851135,-33744.83212135,0.00011099,2]
[353256019,1739719851144,-33744.83212135,0.00011099,2]
[353256020,1739719851154,-33744.83212135,0.00011099,2]
[353256021,1739719851164,-33744.83212135,0.00011099,2]
[353256022,1739719851173,-33744.83212135,0.00011099,2]
[353256023,1739719851182,-33744.83212135,0.00011105,2]
[353256024,1739719851192,-794.61579172,0.00011105,2]
[353256025,1739719851203,-180.62336569,0.00011113,2]
[353256026,1739719851215,-500.0,0.00011122,2]
[353256027,1739719851224,-500.0,0.00011122,2]
[353256028,1739719851233,-500.0,0.00011122,2]
[353256029,1739719851242,-500.0,0.00011123,2]
[353256030,1739719851252,-282.52263098,0.00011123,2]
[353256031,1739719851261,-500.0,0.00011123,2]
[353256032,1739719851271,-500.0,0.00011123,2]
[353256033,1739719851279,-500.0,0.00011123,2]
[353256034,1739719851290,-500.0,0.00011123,2]
[353256035,1739719851300,-500.0,0.00011123,2]
[353256036,1739719851310,-500.0,0.00011123,2]
[353256037,1739719851320,-504.83200725,0.00011123,2]
[353256038,1739719851329,-612.47,0.00011123,2]
[353256039,1739719851339,-501.80698467,0.00011123,2]
[353256040,1739719851349,-500.0,0.00011123,2]
[353256041,1739719851359,-500.0,0.00011123,2]
[353256042,1739719851368,-500.0,0.00011123,2]
[353256043,1739719851378,-500.0,0.00011123,2]
[353256044,1739719851388,-500.0,0.00011123,2]
[353256045,1739719851398,-500.0,0.00011123,2]
[353256046,1739719851410,-500.0,0.00011123,2]
[353256047,1739719851422,-422.05,0.00011123,2]
[353256048,1739719851431,-500.0,0.00011123,2]
[353256049,1739719851443,-509.66,0.00011123,2]
[353256050,1739719851452,-500.0,0.00011123,2]
[353256051,1739719851462,-500.0,0.00011123,2]
[353256052,1739719851473,-500.0,0.00011123,2]
[353256053,1739719851484,-500.0,0.00011123,2]
[353256054,1739719851494,-500.0,0.00011123,2]
[353256055,1739719851505,-500.0,0.00011123,2]
[353256056,1739719851516,-500.0,0.00011123,2]
[353256057,1739719851526,-500.0,0.00011123,2]
[353256058,1739719851536,-510.02,0.00011123,2]
[353256059,1739719851547,-500.0,0.00011123,2]
[353256060,1739719851558,-500.0,0.00011123,2]
[353256061,1739719851569,-500.0,0.00011123,2]
[353256062,1739719851579,-500.0,0.00011123,2]
[353256063,1739719851589,-500.0,0.00011123,2]
[353256064,1739719851599,-500.0,0.00011123,2]
[353256065,1739719851609,-500.0,0.00011123,2]
[353256066,1739719851618,-500.0,0.00011123,2]
[353256067,1739719851628,-500.0,0.00011123,2]
[353256068,1739719851638,-500.0,0.00011123,2]
[353256069,1739719851648,-500.0,0.00011123,2]
[353256070,1739719851658,-500.0,0.00011123,2]
[353256071,1739719851667,-500.0,0.00011123,2]
[353256072,1739719851677,-500.0,0.00011123,2]
[353256073,1739719851687,-500.0,0.00011123,2]
[353256074,1739719851698,-500.0,0.00011123,2]
[353256075,1739719851708,-500.0,0.00011123,2]
[353256076,1739719851718,-632.06,0.00011123,2]
[353256077,1739719851729,-500.0,0.00011123,2]
[353256078,1739719851739,-500.0,0.00011123,2]
[353256079,1739719851749,-500.0,0.00011123,2]
[353256080,1739719851759,-500.0,0.00011123,2]
[353256081,1739719851770,-500.0,0.00011123,2]
[353256082,1739719851781,-500.0,0.00011123,2]
[353256083,1739719851791,-500.0,0.00011123,2]
[353256084,1739719851801,-500.0,0.00011123,2]
[353256085,1739719851811,-500.0,0.00011123,2]
[353256086,1739719851821,-500.0,0.00011123,2]
[353256087,1739719851831,-500.0,0.00011123,2]
[353256088,1739719851841,-500.0,0.00011123,2]
[353256089,1739719851851,-500.0,0.00011123,2]
[353256090,1739719851862,-500.0,0.00011123,2]
[353256091,1739719851872,-500.0,0.00011123,2]
[353256092,1739719851882,-500.0,0.00011123,2]
[353256093,1739719851892,-500.0,0.00011123,2]
[353256094,1739719851902,-500.0,0.00011123,2]
[353256095,1739719851911,-267.49643855,0.00011123,2]
[353256096,1739719851922,-500.0,0.00011123,2]
[353256097,1739719851932,-500.0,0.00011123,2]
[353256098,1739719851943,-500.0,0.00011123,2]
[353256099,1739719851954,-500.0,0.00011123,2]
[353256100,1739719851964,-546.98,0.00011123,2]
[353256101,1739719851975,-778.31,0.00011123,2]
[353256102,1739719851985,-500.0,0.00011123,2]
[353256103,1739719851994,-500.0,0.00011123,2]
[353256104,1739719852004,-720.05,0.00011123,2]
[353256105,1739719852014,-500.0,0.00011123,2]
[353256106,1739719852024,-165.86546097,0.00011123,2]
[353256107,1739719852035,-500.0,0.00011123,2]
[353256108,1739719852045,-500.0,0.00011123,2]
[353256109,1739719852056,-500.0,0.00011123,2]
[353256110,1739719852067,-500.0,0.00011123,2]
[353256111,1739719852077,-982.93,0.00011123,2]
[353256112,1739719852086,-500.0,0.00011123,2]
[353256113,1739719852096,-610.07,0.00011123,2]
[353256114,1739719852107,-510.77696109,0.00011123,2]
[353256115,1739719852117,-500.0,0.00011123,2]
[353256116,1739719852127,-500.0,0.00011123,2]
[353256117,1739719852138,-812.65,0.00011123,2]
[353256118,1739719852149,-500.0,0.00011123,2]
[353256119,1739719852159,-500.0,0.00011123,2]
[353256120,1739719852169,-500.0,0.00011123,2]
[353256121,1739719852179,-500.0,0.00011123,2]
[353256122,1739719852188,-500.0,0.00011123,2]
[353256123,1739719852199,-500.0,0.00011123,2]
[353256124,1739719852211,-500.0,0.00011123,2]
[353256125,1739719852220,-500.0,0.00011123,2]
[353256126,1739719852230,-500.0,0.00011123,2]
[353256127,1739719852240,-500.0,0.00011123,2]
[353256128,1739719852250,-500.0,0.00011123,2]
[353256129,1739719852259,-500.0,0.00011123,2]
[353256130,1739719852268,-761.58,0.00011123,2]
[353256131,1739719852278,-500.0,0.00011123,2]
[353256132,1739719852289,-500.0,0.00011123,2]
[353256133,1739719852299,-527.09,0.00011123,2]
[353256134,1739719852310,-500.0,0.00011123,2]
[353256135,1739719852320,-1082.54,0.00011123,2]
[353256136,1739719852331,-797.05,0.00011123,2]
[353256137,1739719852341,-500.0,0.00011123,2]
[353256138,1739719852351,-500.0,0.00011123,2]
[353256139,1739719852361,-500.0,0.00011123,2]
[353256140,1739719852371,-500.0,0.00011123,2]
[353256141,1739719852381,-717.56,0.00011123,2]
[353256142,1739719852391,-607.4,0.00011123,2]
[353256143,1739719852400,-500.0,0.00011123,2]
[353256144,1739719852410,-500.0,0.00011123,2]
[353256145,1739719852419,-500.0,0.00011123,2]
[353256146,1739719852429,-500.0,0.00011123,2]
[353256147,1739719852439,-682.32,0.00011123,2]
[353256148,1739719852449,-500.0,0.00011123,2]
[353256149,1739719852458,-500.0,0.00011123,2]
[353256150,1739719852468,-1095.09,0.00011123,2]
[353256151,1739719852478,-500.0,0.00011123,2]
[353256152,1739719852487,-500.0,0.00011123,2]
[353256153,1739719852496,-500.0,0.00011123,2]
[353256154,1739719852506,-500.0,0.00011123,2]
[353256155,1739719852515,-500.0,0.00011123,2]
[353256156,1739719852524,-500.0,0.00011123,2]
[353256157,1739719852534,-500.0,0.00011123,2]
[353256158,1739719852544,-500.0,0.00011123,2]
[353256159,1739719852553,-500.0,0.00011123,2]
[353256160,1739719852562,-500.0,0.00011123,2]
[353256161,1739719852572,-500.0,0.00011123,2]
[353256162,1739719852582,-500.0,0.00011123,2]
[353256163,1739719852592,-500.0,0.00011123,2]
[353256164,1739719852601,-500.0,0.00011123,2]
[353256165,1739719852611,-500.0,0.00011123,2]
[353256166,1739719852621,-500.0,0.00011123,2]
[353256167,1739719852630,-500.0,0.00011123,2]
[353256168,1739719852640,-752.79,0.00011123,2]
[353256169,1739719852650,-693.95,0.00011123,2]
[353256170,1739719852659,-500.0,0.00011123,2]
[353256171,1739719852669,-606.73,0.00011123,2]
[353256172,1739719852678,-500.0,0.00011123,2]
[353256173,1739719852688,-624.98,0.00011123,2]
[353256174,1739719852698,-500.0,0.00011123,2]
[353256175,1739719852708,-500.0,0.00011123,2]
[353256176,1739719852717,-500.0,0.00011123,2]
[353256177,1739719852727,-500.0,0.00011123,2]
[353256178,1739719852737,-500.0,0.00011123,2]
[353256179,1739719852747,-562.44,0.00011123,2]
[353256180,1739719852757,-500.0,0.00011123,2]
[353256181,1739719852768,-500.0,0.00011123,2]
[353256182,1739719852778,-791.35,0.00011123,2]
[353256183,1739719852788,-500.0,0.00011123,2]
[353256184,1739719852798,-500.0,0.00011123,2]
[353256185,1739719852808,-500.0,0.00011123,2]
[353256186,1739719852818,-500.0,0.00011123,2]
[353256187,1739719852827,-1070.44,0.00011123,2]
[353256188,1739719852837,-500.0,0.00011123,2]
[353256189,1739719852847,-887.17,0.00011123,2]
[353256190,1739719852857,-500.0,0.00011123,2]
[353256191,1739719852867,-801.39237,0.00011123,2]
[353256192,1739719852877,-500.0,0.00011123,2]
[353256193,1739719852887,-500.0,0.00011123,2]
[353256194,1739719852897,-658.15,0.00011123,2]
[353256195,1739719852907,-200.43008806,0.00011123,2]
[353256196,1739719852917,-500.0,0.00011123,2]
[353256197,1739719852927,-500.0,0.00011123,2]
[353256198,1739719852938,-500.0,0.00011123,2]
[353256199,1739719852948,-500.0,0.00011123,2]
[353256200,1739719852959,-500.0,0.00011123,2]
[353256201,1739719852969,-723.28,0.00011123,2]
[353256202,1739719852979,-500.0,0.00011123,2]
[353256203,1739719852988,-500.0,0.00011123,2]
[353256204,1739719852998,-1036.138115,0.00011123,2]
[353256205,1739719853008,-615.74,0.00011123,2]
[353256206,1739719853018,-500.0,0.00011123,2]
[353256207,1739719853028,-500.0,0.00011123,2]
[353256208,1739719853038,-500.0,0.00011123,2]
[353256209,1739719853048,-500.0,0.00011123,2]
[353256210,1739719853058,-500.0,0.00011123,2]
[353256211,1739719853068,-500.0,0.00011123,2]
[353256212,1739719853077,-500.0,0.00011123,2]
[353256213,1739719853087,-500.0,0.00011123,2]
[353256214,1739719853097,-500.0,0.00011123,2]
[353256215,1739719853107,-500.0,0.00011123,2]
[353256216,1739719853117,-500.0,0.00011123,2]
[353256217,1739719853127,-500.0,0.00011123,2]
[353256218,1739719853136,-500.0,0.00011123,2]
[353256219,1739719853146,-500.0,0.00011123,2]
[353256220,1739719853156,-500.0,0.00011123,2]
[353256221,1739719853166,-500.0,0.00011123,2]
[353256222,1739719853175,-500.0,0.00011123,2]
[353256223,1739719853184,-500.0,0.00011123,2]
[353256224,1739719853195,-500.0,0.00011123,2]
[353256225,1739719853205,-500.0,0.00011123,2]
[353256226,1739719853220,-568.99665447,0.00011123,2]
[353256227,1739719853230,-500.0,0.00011123,2]
[353256228,1739719853240,-500.0,0.00011123,2]
[353256229,1739719853249,-500.0,0.00011123,2]
[353256230,1739719853260,-500.0,0.00011123,2]
[353256231,1739719853270,-1142.85,0.00011123,2]